bitfinex/quotes_ETHUSD_20220118
["timestamp","ask_amount","ask_price","bid_price","bid_amount"]
[1642535957025,2.29351521,3132.3,3132.1,1.89701]
[1642535957229,1.1277,3132.7,3132.1,1.89701]
[1642535957629,0.8036358,3132.6,3132.2,0.79851]
[1642535957830,11.8075,3133.1,3132.3,2.6043305]
[1642535957831,7.5244,3133.1,3132.3,2.6043305]
[1642535958028,3.7593,3133.1,3132.3,2.90603577]
[1642535958227,0.00170527,3132.9,3132.3,4.50282577]
[1642535958629,0.00113685,3132.8,3132.3,1.89849527]
[1642535958829,0.79960685,3132.8,3132.4,2.39506]
[1642535959029,2.31545846,3132.7,3132.5,0.3]
[1642535959474,2.61545846,3132.7,3132.5,0.3]
[1642535960077,3.41407746,3132.7,3132.5,0.3]
[1642535960378,4.87168594,3132.7,3132.5,0.3]
[1642535960576,4.83869746,3132.7,3132.5,0.3]
[1642535961681,4.04007846,3132.7,3132.5,0.3]
[1642535962279,4.34007846,3132.7,3132.5,0.3]
[1642535962879,4.04007846,3132.7,3132.5,0.3]
[1642535963125,3.40512993,3132.6,3132.4,0.3]
[1642535963326,2.48582843,3132.5,3132.4,0.3]
[1642535963532,5.3987,3132.4,3132.3,0.30170527]
[1642535964126,0.7987,3132.4,3132.3,0.30170527]
[1642535964327,1.7987,3132.4,3132.3,0.30170527]
[1642535964527,0.7987,3132.4,3132.3,0.30170527]
[1642535969681,0.26184709,3132.5,3132.3,0.30170527]
[1642535970080,0.26184709,3132.5,3132.4,0.00113684]
[1642535970937,0.79856,3132.6,3132.4,0.79968684]
[1642535971242,0.79856,3132.6,3132.4,2.39679684]
[1642535971435,0.79856,3132.6,3132.5,0.3]
[1642535972642,0.69856,3132.6,3132.5,0.3]
[1642535977085,19.44856,3132.6,3132.4,0.79968684]
[1642535977293,52.31446143,3132.5,3132.4,0.00113684]
[1642535977486,41.99886316,3132.3,3131.8,1.59755]
[1642535977685,0.79883,3132.1,3131.9,0.79882]
[1642535977984,2.77965173,3132.0,3131.9,0.79882]
[1642535978229,2.77965173,3132.0,3131.8,1.59755]
[1642535978230,4.87846223,3132.0,3131.8,1.59755]
[1642535978429,1.0988105,3132.0,3131.9,0.00284212]
[1642535978629,8.54508206,3132.0,3131.9,0.00284212]
[1642535979034,3.64508206,3132.0,3131.9,0.00284212]
[1642535979631,3.60538527,3132.0,3131.9,0.00284212]
[1642535979833,5.27113299,3132.0,3131.9,0.00284212]
[1642535980030,5.30913432,3132.0,3131.9,0.00284212]
[1642535980232,8.55913432,3132.0,3131.9,0.00284212]
[1642535980732,24.05913432,3132.0,3131.9,0.00284212]
[1642535981136,66.4,3131.9,3131.6,1.59765]
[1642535981333,0.92668,3131.8,3131.3,1.59791]
[1642535981540,2.9289041,3131.7,3131.3,1.59791]
[1642535981885,0.1277,3131.6,3131.3,1.59791]
[1642535982680,0.1277,3131.6,3130.9,1.59782]
[1642535982681,1.5980037,3131.2,3130.9,1.59782]
[1642535982882,0.79901,3131.2,3130.9,1.89782]
[1642535983080,1.09901,3131.2,3131.0,0.00511581]
[1642535983280,1.09901,3131.2,3131.0,0.80405581]
[1642535983681,19.84901,3131.2,3131.1,0.00454739]
[1642535984479,1.09901,3131.2,3131.1,0.00454739]
[1642535984681,3.46508714,3131.2,3131.1,0.00454739]
[1642535984881,3.16508714,3131.2,3131.1,0.00454739]
[1642535985735,21.91508714,3131.2,3131.1,0.00454739]
[1642535986235,3.16508714,3131.2,3131.1,0.00454739]
[1642535986640,21.91508714,3131.2,3131.1,0.00454739]
[1642535987442,47.65,3131.1,3130.6,1.59811]
[1642535987645,44.76758945,3131.0,3130.1,1.72595]
[1642535987846,44.76758945,3131.0,3129.9,3.3033]
[1642535987847,1.26421,3130.9,3130.7,0.00227369]
[1642535988042,41.99772631,3130.7,3129.4,3.959]
[1642535988243,18.8777,3130.6,3130.0,0.00397897]
[1642535988444,2.14778061,3130.5,3130.0,0.00397897]
[1642535988744,0.9414,3130.5,3130.0,0.00397897]
[1642535989146,0.9414,3130.5,3129.9,0.30454739]
[1642535989381,18.75,3130.4,3129.9,0.30454739]
[1642535989575,0.7992513,3130.3,3130.1,1.59838]
[1642535989980,0.79927,3130.4,3130.2,1.40593997]
[1642535990176,0.79927,3130.4,3130.2,0.00284212]
[1642535990377,0.79927,3130.4,3130.3,0.0022737]
[1642535990577,0.79927,3130.4,3130.2,0.00284212]
[1642535991179,0.79927,3130.4,3130.2,0.80199212]
[1642535991578,0.79927,3130.4,3130.3,0.0022737]
[1642535996026,0.79927,3130.4,3130.2,0.00284212]
[1642535999784,0.79927,3130.4,3130.2,0.80195212]
[1642536000184,0.72937329,3130.4,3130.3,0.0022737]
[1642536000832,0.79903,3130.7,3130.3,0.0022737]
[1642536001032,0.79903,3130.7,3130.5,3.02951337]
[1642536001538,0.1277,3131.2,3130.5,4.62742337]
[1642536001840,5.44022,3131.4,3130.5,3.19594]
[1642536002038,0.79887,3131.3,3131.0,0.7989]
[1642536002737,0.79887,3131.3,3130.5,1.59803]
[1642536002936,0.79901,3131.0,3130.3,0.0022737]
[1642536003142,42.0,3130.5,3130.3,0.0022737]
[1642536003338,5.7777,3130.4,3130.3,0.0022737]
[1642536003740,6.0777,3130.4,3130.3,0.0022737]
[1642536003939,10.13248636,3130.4,3130.3,0.0022737]
[1642536004149,41.9977263,3130.3,3130.1,0.1277]
[1642536004385,5.7777,3130.2,3130.1,0.1277]
[1642536004587,5.95,3130.2,3130.1,0.1277]
[1642536005387,8.43012574,3130.2,3130.1,0.1277]
[1642536005590,9.22943574,3130.2,3129.1,0.92701]
[1642536005792,0.7993334,3130.0,3129.1,0.1277]
[1642536005991,2.98528124,3129.9,3129.2,0.00625265]
[1642536006192,41.86604735,3129.1,3128.9,2.38989318]
[1642536006395,41.86604735,3129.1,3127.8,6.46187989]
[1642536006396,42.0,3128.8,3127.8,6.46187989]
[1642536006596,0.5928,3128.7,3127.8,6.46187989]
[1642536006806,20.9422467,3128.7,3127.8,6.46187989]
[1642536006993,20.1425167,3128.7,3127.8,6.46187989]
[1642536007191,20.17684746,3128.7,3127.8,6.46187989]
[1642536007593,2.39248124,3128.6,3126.8,3.19813]
[1642536007895,2.39248124,3128.6,3127.0,0.01250532]
[1642536007896,1.3926453,3128.5,3127.0,0.01250532]
[1642536008135,0.3,3128.4,3127.1,2.39931]
[1642536008333,0.5928,3128.3,3127.1,1.59947]
[1642536008533,0.5928,3128.3,3127.2,0.01136847]
[1642536008534,2.64184853,3128.2,3127.2,0.01136847]
[1642536008832,1.97831819,3127.4,3127.2,0.01136847]
[1642536009035,0.1278,3128.1,3127.2,0.01136847]
[1642536009036,0.2984,3127.5,3127.2,0.01136847]
[1642536009237,1.09824,3127.5,3127.2,0.01136847]
[1642536009438,1.09824,3127.5,3127.2,0.81120847]
[1642536009636,0.79984,3127.5,3127.2,0.81120847]
[1642536009837,0.79984,3127.5,3127.3,0.01080005]
[1642536010042,1.29596473,3128.2,3127.4,1.49071922]
[1642536010043,0.1279,3128.1,3127.4,1.49071922]
[1642536010240,0.465,3128.5,3127.3,0.01080005]
[1642536010440,0.79967,3128.3,3127.5,0.0096632]
[1642536010641,0.79967,3128.3,3127.6,0.79964]
[1642536010944,10.8467,3129.2,3127.7,0.00852636]
[1642536010945,7.499,3128.9,3127.7,0.00852636]
[1642536011141,7.499,3128.9,3128.0,0.79949]
[1642536011343,7.499,3128.9,3128.5,1.37971711]
[1642536011641,7.499,3128.9,3128.6,0.00341054]
[1642536012290,9.39643606,3128.9,3128.6,0.00341054]
[1642536012490,7.499,3128.9,3128.6,0.00341054]
[1642536013090,7.499,3128.9,3128.5,0.7995]
[1642536013391,8.2985,3128.9,3128.6,0.80291054]
[1642536013790,8.2985,3128.9,3128.7,0.00284212]
[1642536014392,8.2985,3128.9,3128.8,0.19063873]
[1642536014589,8.4263,3128.9,3128.8,0.19063873]
[1642536014790,8.7263,3128.9,3128.8,0.19291243]
[1642536015189,10.78435452,3128.9,3128.8,0.19291243]
[1642536015640,8.7263,3128.9,3128.8,0.19291243]
[1642536015838,8.5985,3128.9,3128.8,0.19291243]
[1642536016038,8.2985,3128.9,3128.8,0.19291243]
[1642536016938,10.63666479,3128.9,3128.8,0.19291243]
[1642536017139,9.83716479,3128.9,3128.8,0.19291243]
[1642536017641,7.499,3128.9,3128.8,0.19291243]
[1642536018942,8.499,3128.9,3128.8,0.19291243]
[1642536019388,10.21071038,3128.9,3128.8,0.19291243]
[1642536019785,10.63851038,3128.9,3128.8,0.19291243]
[1642536019986,13.83851038,3128.9,3128.8,0.19291243]
[1642536020689,13.53851038,3128.9,3128.8,0.19291243]
[1642536020888,12.41071038,3128.9,3128.8,0.19291243]
[1642536021287,10.699,3128.9,3128.8,0.19291243]
[1642536023934,0.01430698,3129.2,3128.8,8.00552237]
[1642536024135,0.00341054,3129.8,3129.2,4.15]
[1642536024337,0.00341054,3129.8,3129.1,0.01214285]
[1642536024534,0.00284211,3129.7,3129.4,0.09531858]
[1642536024934,0.00227369,3129.6,3129.4,0.89455858]
[1642536025337,0.00170527,3129.5,3129.4,1.69377858]
[1642536025737,0.00170527,3129.5,3129.4,7.65373858]
[1642536026139,0.1278,3130.7,3129.8,3.11748216]
[1642536026337,0.1278,3130.7,3129.9,2.37532218]
[1642536026540,0.00625265,3130.6,3129.9,0.79896]
[1642536026747,0.1277,3130.5,3129.9,0.95892]
[1642536026986,0.1277,3130.5,3130.0,2.70683224]
[1642536026987,0.00568423,3130.5,3130.0,2.70683224]
[1642536027187,0.00511581,3130.4,3130.1,0.1277]
[1642536027390,0.00511581,3130.4,3130.1,2.52427]
[1642536027589,0.00454738,3130.3,3130.1,2.39657]
[1642536027987,0.00397896,3130.2,3129.9,2.39691]
[1642536028390,0.00341054,3130.1,3129.9,2.39691]
[1642536028789,0.00284211,3130.0,3129.9,2.39691]
[1642536029390,1.768564,3130.0,3129.9,2.39691]
[1642536029590,0.00284211,3130.0,3129.9,2.39691]
[1642536029788,0.00284211,3130.0,3129.9,2.58754873]
[1642536030189,0.00284211,3130.0,3129.9,0.98959873]
[1642536030388,4.00203211,3130.0,3129.9,0.19063873]
[1642536030838,0.1277,3130.2,3129.9,4.09063873]
[1642536031043,0.1277,3130.7,3129.9,6.17376057]
[1642536031242,0.1277,3131.0,3129.9,2.60060279]
[1642536031441,0.7991,3130.5,3129.9,0.20355279]
[1642536031639,0.7991,3130.5,3129.9,0.19063873]
[1642536031838,0.0022737,3130.4,3129.9,0.19063873]
[1642536032040,1.97706028,3130.3,3129.9,0.19063873]
[1642536032241,0.00170527,3130.3,3129.9,0.19063873]
[1642536032439,0.12883685,3130.2,3129.9,0.19063873]
[1642536032643,1.59864,3130.1,3129.9,0.19063873]
[1642536032840,3.5777,3130.0,3129.9,0.19063873]
[1642536033039,1.1277,3130.0,3129.9,0.19063873]
[1642536033241,0.1277,3130.0,3129.9,0.19063873]
[1642536033441,0.1277,3130.4,3129.9,0.19063873]
[1642536033642,0.00284212,3130.5,3129.9,0.19063873]
[1642536033845,0.00170527,3130.3,3129.9,1.78872873]
[1642536034042,0.79908,3130.5,3129.9,1.78872873]
[1642536034043,0.1299737,3130.4,3129.9,1.78872873]
[1642536034243,0.00113685,3130.2,3129.9,1.78872873]
[1642536034512,0.00170527,3130.3,3129.9,1.78872873]
[1642536034896,0.00113685,3130.2,3129.9,1.59809]
[1642536035296,0.00397897,3130.7,3129.9,1.59809]
[1642536035497,0.00397897,3130.7,3130.0,0.7991]
[1642536035697,0.00454739,3130.8,3130.2,0.79898]
[1642536036098,0.00397897,3130.7,3130.2,0.79898]
[1642536036500,0.00682109,3131.2,3130.2,0.79898]
[1642536036699,0.79907,3130.7,3130.2,0.79898]
[1642536036899,0.79907,3130.7,3129.9,3.44552822]
[1642536037100,0.1277,3130.6,3129.9,3.44552822]
[1642536037403,0.00284212,3130.5,3129.7,1.59833]
[1642536037601,0.14288186,3130.4,3129.7,1.59833]
[1642536037802,18.75,3130.1,3129.4,0.0347754]
[1642536038001,19.5494824,3129.9,3129.4,0.0347754]
[1642536038237,19.5494824,3129.9,3129.5,0.00170527]
[1642536038238,0.5928,3129.8,3129.5,0.00170527]
[1642536038438,4.1042065,3129.8,3129.5,0.00170527]
[1642536038642,1.5928,3129.8,3129.5,0.00170527]
[1642536039045,0.5928,3129.8,3129.5,0.00170527]
[1642536039945,1.60005684,3130.0,3129.5,0.00170527]
[1642536039946,0.00113684,3130.0,3129.5,0.00170527]
[1642536040144,0.00113684,3130.0,3129.7,0.09531858]
[1642536040745,3.2,3129.8,3129.7,0.09531858]
[1642536041345,4.2,3129.8,3129.7,0.09531858]
[1642536042389,3.2,3129.8,3129.7,0.09531858]
[1642536042592,4.2,3129.8,3129.7,0.09531858]
[1642536043993,3.2,3129.8,3129.7,0.09531858]
[1642536045293,3.2,3129.8,3129.7,0.19063873]
[1642536050082,3.3278,3129.8,3129.7,0.19063873]
[1642536050282,3.2,3129.8,3129.7,0.19063873]
[1642536051084,4.2,3129.8,3129.7,0.19063873]
[1642536052589,3.2,3129.8,3129.7,0.19063873]
[1642536056891,0.1278,3130.2,3129.7,4.03975873]
[1642536057087,0.03836933,3130.8,3129.7,1.19614542]
[1642536057291,0.03836933,3130.8,3129.8,0.00113684]
[1642536057485,0.00113685,3130.2,3130.0,0.09531858]
[1642536057685,0.79902,3130.4,3130.0,0.19063873]
[1642536057886,0.79902,3130.4,3130.1,0.79896]
[1642536058086,0.80015685,3130.4,3130.2,2.1196409]
[1642536058286,0.80015685,3130.4,3130.2,2.4196409]
[1642536058786,0.80015685,3130.4,3130.2,2.1196409]
[1642536059488,0.92785685,3130.4,3130.2,2.1196409]
[1642536060086,0.92785685,3130.4,3130.2,2.4196409]
[1642536060731,0.80015685,3130.4,3130.2,2.4196409]
[1642536061132,0.03781077,3130.7,3130.3,4.04040334]
[1642536061337,0.1277,3131.3,3130.3,2.93420454]
[1642536061534,0.00113684,3130.6,3130.3,2.9277]
[1642536061733,0.00113684,3130.6,3130.3,0.1277]
[1642536062136,0.00113684,3130.6,3130.3,0.16247539]
[1642536062339,0.00113684,3130.6,3130.4,0.79887]
[1642536062542,0.1277,3131.3,3130.3,1.76021539]
[1642536062735,0.1277,3131.5,3130.5,0.09531858]
[1642536062938,0.00170527,3130.9,3130.5,0.09531858]
[1642536063139,0.03800894,3131.3,3130.5,0.13009397]
[1642536063439,0.12940528,3131.2,3130.6,0.00170527]
[1642536063642,0.5927,3131.5,3130.6,0.30170527]
[1642536063938,0.7990474,3131.1,3130.5,0.13009397]
[1642536064140,9.6451747,3131.3,3130.7,0.00113685]
[1642536064387,0.1277,3131.0,3130.8,1.94793941]
[1642536064587,0.12940527,3131.2,3130.8,2.24793941]
[1642536064787,1.59808,3131.0,3130.8,2.24793941]
[1642536064987,0.1277,3130.9,3130.8,2.24793941]
[1642536065192,0.1277,3130.9,3130.8,2.2827148]
[1642536065392,3.6610829,3131.3,3130.9,2.4]
[1642536065591,2.39708,3131.3,3130.8,2.4104148]
[1642536065790,2.39708,3131.3,3130.8,2.28442007]
[1642536065993,2.39708,3131.3,3130.9,0.00113685]
[1642536066191,2.39708,3131.3,3130.9,0.03591224]
[1642536066595,0.1277,3131.4,3130.9,0.03591224]
[1642536067097,0.00113685,3131.3,3130.9,0.03591224]
[1642536067296,0.1277,3131.2,3130.9,0.03591224]
[1642536067707,5.65,3131.0,3130.8,1.9827148]
[1642536067903,5.65,3131.0,3130.5,0.06955078]
[1642536067904,15.66829798,3130.8,3130.5,0.06955078]
[1642536068134,42.0,3130.5,3130.1,0.10432617]
[1642536068431,1.01239815,3130.9,3130.1,0.10432617]
[1642536068432,0.106,3130.4,3130.1,0.10432617]
[1642536068631,0.03689943,3131.0,3130.1,0.10432617]
[1642536068632,0.465,3130.5,3130.1,0.10432617]
[1642536068932,0.106,3130.9,3130.1,0.10432617]
[1642536069130,0.79927,3130.4,3130.1,0.10432617]
[1642536069531,0.79927,3130.4,3130.2,1.84104104]
[1642536069736,1.59853,3130.5,3130.3,0.1277]
[1642536069937,0.95686762,3130.5,3130.3,0.16588593]
[1642536070137,0.95686762,3130.5,3130.3,0.03818593]
[1642536070340,0.95686762,3130.5,3130.2,1.84104104]
[1642536070341,5.65,3130.3,3130.2,1.84104104]
[1642536070537,0.79927,3130.4,3130.2,1.84104104]
[1642536070736,0.79927,3130.4,3130.2,1.84502]
[1642536071990,1.09927,3130.4,3130.2,1.84502]
[1642536072391,2.09927,3130.4,3130.2,1.84502]
[1642536073190,2.09927,3130.4,3130.3,0.19063873]
[1642536073787,1.79927,3130.4,3130.3,0.19063873]
[1642536073991,3.92621759,3130.4,3130.3,0.19063873]
[1642536074189,1.63276993,3130.4,3130.3,0.22541412]
[1642536074693,2.43203993,3130.4,3130.3,0.22541412]
[1642536075091,6.44927,3130.4,3130.3,0.03477539]
[1642536075498,5.65,3130.3,3130.2,2.27272]
[1642536075733,48.65,3130.3,3130.2,1.97272]
[1642536075943,6.65,3130.3,3130.2,1.97272]
[1642536076139,6.65,3130.3,3130.2,0.13167896]
[1642536076338,7.65,3130.3,3130.2,0.13167896]
[1642536076739,1.0,3130.3,3130.2,0.13167896]
[1642536077138,1.0,3130.3,3130.2,0.00397896]
[1642536077739,1.0,3130.3,3130.2,1.76364825]
[1642536077940,1.0,3130.3,3130.2,1.39854825]
[1642536077941,4.5,3130.3,3130.2,1.39854825]
[1642536078343,1.0,3130.3,3130.2,1.39854825]
[1642536078541,2.0,3130.3,3130.2,1.39854825]
[1642536078740,1.0,3130.3,3130.2,1.39854825]
[1642536079981,1.0,3130.3,3130.1,0.20865234]
[1642536080185,0.79918,3130.2,3130.1,0.20865234]
[1642536080384,0.79918,3130.2,3130.1,1.78123529]
[1642536080586,3.83363685,3131.1,3130.1,1.78123529]
[1642536080790,1.0,3130.8,3130.2,0.1277]
[1642536080985,0.96863515,3130.8,3130.2,0.1277]
[1642536081285,0.00284212,3130.7,3130.2,0.1277]
[1642536081487,0.00284212,3130.7,3130.3,1.65480178]
[1642536081687,0.80124369,3130.6,3130.4,0.1277]
[1642536081988,0.00170527,3130.5,3130.4,0.4277]
[1642536084537,0.00170527,3130.5,3130.4,0.3]
[1642536086546,0.00170527,3130.5,3130.4,3.3277]
[1642536086746,0.00170527,3130.5,3130.4,5.69359994]
[1642536086987,0.00170527,3130.5,3130.4,2.79359994]
[1642536087387,0.00170527,3130.5,3130.4,0.4277]
[1642536090749,0.00170527,3130.5,3130.4,0.3]
[1642536092348,0.12940527,3130.5,3130.4,0.3]
[1642536092545,0.12940527,3130.5,3130.3,1.65480178]
[1642536092746,3.92683,3130.4,3130.3,1.65480178]
[1642536092949,3.92796685,3130.4,3130.3,1.65480178]
[1642536094150,0.92796685,3130.4,3130.3,1.65480178]
[1642536096192,0.92796685,3130.4,3129.6,0.1277]
[1642536096397,0.01242352,3129.8,3128.8,1.59842]
[1642536096602,0.1278,3129.7,3128.4,0.127956]
[1642536096798,0.9648,3129.0,3128.5,0.1278]
[1642536097000,0.9648,3129.0,3128.5,0.1374632]
[1642536097195,0.9648,3129.0,3128.6,1.67960813]
[1642536097596,0.9648,3129.0,3128.7,0.00852635]
[1642536098142,0.9648,3129.0,3128.8,0.1278]
[1642536098542,0.9648,3129.0,3128.9,3.4573895]
[1642536098740,0.9648,3129.0,3128.9,3.5851895]
[1642536098941,0.9648,3129.0,3128.9,0.4351895]
[1642536099145,0.9648,3129.0,3128.9,0.1351895]
[1642536099941,1.76424,3129.0,3128.9,0.0073895]
[1642536100341,1.76424,3129.0,3128.8,0.00795793]
[1642536102191,1.76424,3129.0,3128.8,3.50795793]
[1642536102391,0.9648,3129.0,3128.8,3.50795793]
[1642536102591,0.9648,3129.0,3128.9,0.0073895]
[1642536102990,0.1278,3129.6,3129.0,0.79924]
[1642536103190,0.1278,3129.6,3129.1,4.28949452]
[1642536103191,0.9648,3129.3,3129.1,4.28949452]
[1642536103391,0.9648,3129.3,3129.1,6.96054679]
[1642536103590,0.9648,3129.3,3129.2,3.00568423]
[1642536103790,0.9648,3129.3,3129.2,0.00568423]
[1642536104192,0.9648,3129.3,3129.2,2.35842533]
[1642536104593,0.79911,3130.0,3129.3,0.1278]
[1642536104798,3.24650433,3130.2,3129.3,0.92689]
[1642536104996,3.24650433,3130.2,3129.4,7.34029424]
[1642536105295,3.24764118,3130.4,3130.1,1.48994082]
[1642536105496,3.24764118,3130.4,3130.1,1.78994082]
[1642536105739,3.24764118,3130.4,3130.1,1.09899]
[1642536106041,3.24764118,3130.4,3129.7,0.1277]
[1642536106240,3.24764118,3130.4,3129.7,3.5]
[1642536106241,1.99972133,3130.2,3129.7,3.5]
[1642536106538,0.79923,3130.0,3129.8,0.30227369]
[1642536106943,0.79923,3130.0,3129.9,0.00170527]
[1642536107139,0.92693,3130.0,3129.9,0.00170527]
[1642536107742,3.72693,3130.0,3129.2,0.00568423]
[1642536107944,0.79927,3129.7,3129.1,4.42696]
[1642536108543,0.79927,3129.7,3129.4,5.71764976]
[1642536108948,0.79927,3129.7,3129.5,0.00397896]
[1642536110208,0.92694,3129.9,3129.5,0.00397896]
[1642536111008,0.92694,3129.9,3129.5,0.80311896]
[1642536111405,0.79914,3129.9,3129.6,0.00341054]
[1642536111607,0.1278,3130.1,3129.8,1.15219755]
[1642536112007,0.1277,3130.2,3129.9,0.00170527]
[1642536113250,5.89911,3130.0,3129.9,0.00170527]
[1642536113450,6.02681,3130.0,3129.9,0.00170527]
[1642536113850,0.9648,3129.8,3129.3,0.00511581]
[1642536114050,0.9648,3129.8,3129.4,1.96622382]
[1642536114450,0.7993,3129.7,3129.4,1.96622382]
[1642536114651,0.1278,3129.6,3129.3,0.00511581]
[1642536115149,0.1278,3129.7,3129.3,0.00511581]
[1642536115751,1.96063714,3129.7,3129.2,1.32883708]
[1642536115949,1.96063714,3129.7,3129.2,1.62883708]
[1642536116150,1.96063714,3129.7,3129.3,0.00511581]
[1642536116550,3.55939094,3129.7,3129.3,0.00511581]
[1642536116751,0.79934,3129.5,3128.9,0.0073895]
[1642536116992,0.7993915,3129.4,3128.9,0.0073895]
[1642536117796,0.7994,3129.3,3128.9,0.0073895]
[1642536118195,1.5988047,3129.3,3128.9,0.0073895]
[1642536118394,1.5988047,3129.3,3129.1,2.3048689]
[1642536118794,1.5988047,3129.3,3129.2,0.00568423]
[1642536119894,0.7994,3129.3,3129.2,0.00568423]
[1642536120761,1.7642,3129.3,3129.0,0.00682108]
[1642536120964,0.7994,3129.3,3129.0,0.00682108]
[1642536121265,0.1278,3129.6,3129.2,1.22116608]
[1642536121463,0.1278,3129.7,3129.2,1.52116608]
[1642536121661,0.9648,3129.3,3129.2,1.52116608]
[1642536122065,0.1278,3129.7,3129.2,3.47458954]
[1642536122266,0.0008,3129.8,3129.7,1.53998235]
[1642536122463,0.0008,3129.8,3129.7,1.83998235]
[1642536122666,0.0008,3129.8,3129.7,0.30284212]
[1642536123063,0.0008,3129.8,3129.7,0.00284212]
[1642536123265,2.19169888,3129.8,3129.7,0.00284212]
[1642536123767,0.0008,3129.8,3129.7,0.00284212]
[1642536124593,2.7008,3129.8,3129.7,0.00284212]
[1642536124994,3.6656,3129.8,3129.7,0.00284212]
[1642536125795,5.35188106,3129.8,3129.7,0.00284212]
[1642536126797,2.65188106,3129.8,3129.7,0.00284212]
[1642536127600,0.0008,3129.8,3129.7,0.00284212]
[1642536128001,0.0008,3129.8,3129.7,0.16280212]
[1642536128655,0.0008,3129.8,3129.7,2.41518812]
[1642536129857,0.0008,3129.8,3129.7,5.16413198]
[1642536130057,0.0008,3129.8,3129.7,6.16413198]
[1642536131358,0.0008,3129.8,3129.7,9.66413198]
[1642536131557,0.0008,3129.8,3129.7,9.96413198]
[1642536131759,0.9648,3130.5,3129.8,5.65]
[1642536132014,0.9648,3130.5,3129.9,24.75484349]
[1642536132214,0.0571,3130.7,3130.1,5.65]
[1642536132413,0.0571,3130.7,3130.2,5.42517873]
[1642536132612,0.0571,3130.7,3130.6,1.36069064]
[1642536132814,0.0571,3130.7,3130.6,5.37303546]
[1642536133018,4.01225752,3131.4,3130.7,5.65]
[1642536133217,4.01225752,3131.4,3130.8,3.11480085]
[1642536133415,0.00625266,3131.3,3130.8,3.41480085]
[1642536133615,0.00625266,3131.3,3130.9,1.0]
[1642536133814,0.00568424,3131.2,3131.0,6.4255572]
[1642536134015,0.00568424,3131.2,3131.1,9.24799969]
[1642536134218,4.01225752,3131.6,3131.2,0.79851]
[1642536134415,4.01043033,3131.6,3131.3,2.75303361]
[1642536134615,0.00738951,3131.5,3131.4,6.65]
[1642536134916,0.00738951,3131.5,3131.4,9.30899122]
[1642536135116,2.8237475,3131.6,3131.5,4.75]
[1642536135416,0.1277,3132.4,3131.5,10.28745461]
[1642536135664,0.1277,3132.4,3131.8,1.42141639]
[1642536135851,0.1277,3132.4,3131.6,0.1277]
[1642536135852,0.00284211,3132.0,3131.6,2.72451]
[1642536136050,0.00284211,3132.0,3131.7,0.15996]
[1642536136351,0.00227369,3131.9,3131.7,0.95844]
[1642536136552,0.00227369,3131.9,3131.7,0.45996]
[1642536136753,0.00170527,3131.8,3131.6,1.72451]
[1642536137153,0.00113684,3131.7,3131.6,1.72451]
[1642536137353,0.00113684,3131.7,3131.6,0.1277]
[1642536137755,0.00113684,3131.7,3131.6,0.28766]
[1642536138853,0.00113684,3131.7,3131.6,0.15996]
[1642536141098,0.00113684,3131.7,3131.5,0.3]
[1642536141498,0.1277,3131.6,3131.3,3.01858905]
[1642536141697,0.00113684,3131.7,3131.6,0.15966]
[1642536141898,0.00113684,3131.7,3131.6,0.45966]
[1642536142096,0.00113684,3131.7,3131.6,0.15966]
[1642536142296,0.00113684,3131.7,3131.6,2.50966]
[1642536142497,0.00113684,3131.7,3131.6,2.80966]
[1642536142697,0.00113684,3131.7,3131.6,3.65966]
[1642536142898,0.00113684,3131.7,3131.6,2.95966]
[1642536143164,0.00113684,3131.7,3131.6,3.95966]
[1642536143359,4.03013748,3133.3,3131.7,5.65]
[1642536143555,0.1059,3132.6,3132.3,0.01238016]
[1642536143758,4.03013748,3133.3,3132.3,0.01238016]
[1642536143759,4.03013748,3133.3,3133.0,1.83786358]
[1642536143954,0.1059,3133.6,3133.1,1.12788416]
[1642536144152,0.00852635,3133.2,3133.0,1.1376]
[1642536144353,0.00852635,3133.2,3133.0,1.4376]
[1642536144555,0.00795793,3133.1,3133.0,1.4376]
[1642536144753,0.00795793,3133.1,3133.0,1.59726]
[1642536145357,0.00795793,3133.1,3133.0,3.68687361]
[1642536146157,0.00795793,3133.1,3133.0,5.95006995]
[1642536146358,0.00795793,3133.1,3133.0,3.52721361]
[1642536146758,0.00795793,3133.1,3133.0,5.92380338]
[1642536148199,0.00795793,3133.1,3133.0,3.52721361]
[1642536150746,0.00795793,3133.1,3133.0,6.41109575]
[1642536150946,0.00795793,3133.1,3133.0,7.41109575]
[1642536151149,0.00795793,3133.1,3133.0,7.53859575]
[1642536151949,0.00795793,3133.1,3133.0,3.65471361]
[1642536152148,0.00795793,3133.1,3133.0,3.68687361]
[1642536152451,0.00795793,3133.1,3133.0,4.9435725]
[1642536152651,0.00795793,3133.1,3133.0,3.22721361]
[1642536152952,1.13545793,3133.1,3133.0,2.08961361]
[1642536153147,1.00795793,3133.1,3133.0,2.08961361]
[1642536154248,1.13545793,3133.1,3133.0,2.08961361]
[1642536156593,1.13545793,3133.1,3132.8,0.1275]
[1642536156793,2.73233793,3133.1,3132.8,0.1275]
[1642536156995,0.00738951,3133.0,3132.8,0.1275]
[1642536157195,0.1275,3132.9,3132.8,0.1275]
[1642536157392,0.80525108,3132.9,3132.8,0.1275]
[1642536157593,0.80525108,3132.9,3132.8,2.16543126]
[1642536157793,0.80525108,3132.9,3132.8,0.1275]
[1642536158948,0.80525108,3132.9,3132.8,2.15766255]
[1642536159147,0.00682108,3132.9,3132.8,2.15766255]
[1642536159445,0.00682108,3132.9,3132.8,2.45766255]
[1642536160046,0.00682108,3132.9,3132.8,2.33016255]
[1642536160950,0.00682108,3132.9,3132.8,2.48982255]
[1642536162000,0.21277808,3133.0,3132.9,5.2]
[1642536162197,0.1275,3134.1,3133.0,5.65]
[1642536162395,3.6179,3134.4,3133.1,3.14432792]
[1642536162396,0.1275,3134.3,3133.1,3.14432792]
[1642536162594,0.00568424,3133.9,3133.2,1.0]
[1642536162798,0.00568424,3133.9,3133.3,2.52711999]
[1642536162996,0.00511582,3133.8,3133.3,2.82711999]
[1642536163295,0.7981,3134.1,3133.6,1.42943787]
[1642536163296,0.00454739,3133.7,3133.6,1.42943787]
[1642536163496,0.00454739,3133.7,3133.6,2.65143787]
[1642536163896,0.00454739,3133.7,3133.6,1.222]
[1642536165096,0.00454739,3133.7,3133.4,2.4364397]
[1642536165496,0.00397897,3133.6,3133.4,2.4364397]
[1642536165944,0.00341054,3133.5,3133.4,2.4364397]